[Event "SWE-ch Weekend I 2019"]
[Site "Eskilstuna"]
[Date "2019.07.06"]
[Round "3.5"]
[White "Miloradovic, Jelena"]
[Black "Eriksson, Kristian"]
[Result "*"]
[ECO "C11"]
[WhiteElo "2099"]
[BlackElo "2123"]
[Annotator "NA"]
[PlyCount "23"]
[EventDate "2019.07.06"]
[EventType "swiss"]
[EventCountry "SWE"]
[SourceTitle "playchess.com"]
[Source "ChessBase"]
[SourceQuality "1"]
[TimeControl "5400+30"]

1. e4 {[%emt 0:00:00]} e6 {[%emt 0:00:00]} 2. d4 {[%emt 0:00:15]} d5 {[%emt 0:00:00]} 3. Nc3 {[%emt 0:00:04]} Nf6 {[%emt 0:00:00]} 4. e5 {[%emt 0:00:14]} Nfd7 {[%emt 0:00:02]} 5. f4 {[%emt 0:00:06]} c5 {[%emt 0:00:12]} 6. Nf3 {[%emt 0:00:12]} Nc6 {[%emt 0:00:13]} 7. Be3 {[%emt 0:00:05]} Be7 {[%emt 0:00:06]} 8. Qd2 {[%emt 0:00:08]} O-O {[%emt 0:00:10]} 9. O-O-O {[%emt 0:01:42]} c4 {[%emt 0:00:31]} 10. f5 {[%emt 0:00:17]} b5 {[%emt 0:01:20]} 11. fxe6 {[%emt 0:01:26]} fxe6 {[%emt 0:01:04]} 12. Nxb5 {[%emt 0:01:19]} *

[Event "SWE-ch Weekend I 2019"]
[Site "Eskilstuna"]
[Date "2019.07.06"]
[Round "3.5"]
[White "Svorono, Gabriel"]
[Black "Eriksson, Joel"]
[Result "1/2-1/2"]
[ECO "C11"]
[WhiteElo "2098"]
[BlackElo "1998"]
[Annotator "NA"]
[PlyCount "38"]
[EventDate "2019.07.06"]
[EventType "swiss"]
[EventCountry "SWE"]
[SourceTitle "playchess.com"]
[Source "ChessBase"]
[SourceQuality "1"]
[TimeControl "5400+30"]

1. e4 {[%emt 0:00:00]} e6 {[%emt 0:00:00]} 2. d4 {[%emt 0:00:15]} d5 {[%emt 0:00:00]} 3. Nc3 {[%emt 0:00:03]} Nf6 {[%emt 0:00:00]} 4. e5 {[%emt 0:00:14]} Nfd7 {[%emt 0:00:02]} 5. f4 {[%emt 0:00:06]} c5 {[%emt 0:00:12]} 6. Nf3 {[%emt 0:00:12]} Nc6 {[%emt 0:00:13]} 7. Be3 {[%emt 0:00:05]} Be7 {[%emt 0:00:06]} 8. Qd2 {[%emt 0:00:08]} O-O {[%emt 0:00:10]} 9. O-O-O {[%emt 0:01:42]} c4 {[%emt 0:00:31]} 10. f5 {[%emt 0:00:17]} b5 {[%emt 0:01:20]} 11. fxe6 {[%emt 0:01:27]} fxe6 {[%emt 0:01:04]} 12. Nxb5 {[%emt 0:01:19]} Qb6 {[%emt 0:05:16]} 13. Nd6 {[%emt 0:00:40]} Rb8 {[%emt 0:01:42]} 14. c3 {[%emt 0:00:26]} Na5 {[%emt 0:08:52]} 15. Be2 {[%emt 0:03:26]} Bxd6 {[%emt 0:18:21]} 16. exd6 {[%emt 0:00:36]} Nf6 {[%emt 0:00:14]} 17. Rhf1 {[%emt 0:05:05]} Bd7 {[%emt 0:18:18]} 18. Ne5 {[%emt 0:25:34]} Ba4 {[%emt 0:00:30]} 19. Rxf6 {[%emt 0:00:30]} Rxf6 {[%emt 0:00:30]} 1/2-1/2

[Event "SWE-ch Weekend I 2019"]
[Site "Eskilstuna"]
[Date "2019.07.06"]
[Round "3.8"]
[White "Johansson, Rpy"]
[Black "Eriksson, Hans"]
[Result "*"]
[ECO "A48"]
[WhiteElo "1932"]
[BlackElo "1936"]
[Annotator "NA"]
[PlyCount "21"]
[EventDate "2019.07.06"]
[EventType "swiss"]
[EventCountry "SWE"]
[SourceTitle "playchess.com"]
[Source "ChessBase"]
[SourceQuality "1"]
[TimeControl "5400+30"]

1. d4 {[%emt 0:00:00]} Nf6 {[%emt 0:00:00]} 2. Bf4 {[%emt 0:00:00]} g6 {[%emt 0:00:00]} 3. e3 {[%emt 0:00:00]} Bg7 {[%emt 0:00:00]} 4. h3 {[%emt 0:00:00]} d6 {[%emt 0:00:00]} 5. Nf3 {[%emt 0:00:00]} O-O {[%emt 0:00:00]} 6. Be2 {[%emt 0:00:03]} Nfd7 {[%emt 0:00:31]} 7. O-O {[%emt 0:00:25]} Nc6 {[%emt 0:00:03]} 8. c4 {[%emt 0:00:29]} e5 {[%emt 0:00:11]} 9. Bh2 {[%emt 0:00:19]} exd4 {[%emt 0:05:29]} 10. exd4 {[%emt 0:00:17]} Qf6 {[%emt 0:02:16]} 11. Nc3 {[%emt 0:01:42]} *